bitfinex-derivatives/quotes_BNBF0:USTF0_20241230
["timestamp","ask_amount","ask_price","bid_price","bid_amount"]
[1735579223541,0.90899294,697.15,696.54,1.06706228]
[1735579223837,1.49825096,697.32,696.55,1.06706228]
[1735579224140,0.9082166,697.31,696.55,1.06706228]
[1735579224536,0.9082166,697.3,696.55,1.06706228]
[1735579224738,0.9082166,697.29,696.55,1.06706228]
[1735579224934,0.9082166,697.29,695.93,1.28047474]
[1735579224935,0.9082166,697.29,696.58,1.06706228]
[1735579225137,0.9082166,697.28,696.58,1.06706228]
[1735579225339,0.9082166,697.27,696.58,1.06706228]
[1735579225739,0.9082166,697.26,696.58,1.06706228]
[1735579225937,0.9082166,697.25,696.56,1.06706228]
[1735579226145,0.9082166,697.24,696.56,1.06706228]
[1735579226643,0.9082166,697.23,696.56,1.06706228]
[1735579227147,0.9082166,697.22,696.56,1.06706228]
[1735579227345,1.49804673,697.42,696.63,1.06706228]
[1735579227846,0.90712103,697.41,696.63,1.06706228]
[1735579228039,0.90712103,697.4,696.63,1.06706228]
[1735579228238,0.90712103,697.39,696.63,1.06706228]
[1735579228747,0.90712103,697.38,696.63,1.06706228]
[1735579228947,0.90712103,697.37,696.63,1.06706228]
[1735579229148,1.49786941,697.49,696.63,1.06706228]
[1735579229350,0.90656784,697.48,696.63,1.06706228]
[1735579229745,0.90656784,697.47,696.63,1.06706228]
[1735579229946,0.90656784,697.46,696.67,1.06706228]
[1735579230347,0.90656784,697.45,696.67,1.06706228]
[1735579230545,0.90656784,697.44,696.67,1.06706228]
[1735579230749,0.90656784,697.43,696.67,1.06706228]
[1735579231149,0.90656784,697.42,696.66,1.06706228]
[1735579231349,1.49775122,697.58,696.66,1.06706228]
[1735579231652,0.90538923,697.57,696.66,1.06706228]
[1735579231847,0.90538923,697.56,696.66,1.06706228]
[1735579232246,0.90538923,697.56,695.92,2.1785855]
[1735579232247,0.90538923,697.55,696.63,1.06706228]
[1735579232646,0.90538923,697.54,696.63,1.06706228]
[1735579232846,0.90538923,697.53,696.63,1.06706228]
[1735579233152,0.90538923,697.52,696.63,1.06706228]
[1735579233653,0.90538923,697.51,696.63,1.06706228]
[1735579233951,0.90538923,697.5,696.63,1.06706228]
[1735579234151,0.90538923,697.49,696.63,1.06706228]
[1735579234353,1.49775122,697.58,696.63,1.06706228]
[1735579234752,0.90426626,697.57,696.63,1.06706228]
[1735579235052,0.90426626,697.56,696.68,1.06706228]
[1735579235348,0.90426626,697.55,696.68,1.06706228]
[1735579235748,0.90426626,697.54,696.68,1.06706228]
[1735579235953,0.90426626,697.53,696.68,1.06706228]
[1735579236350,0.90426626,697.52,696.68,1.06706228]
[1735579236552,0.90426626,697.51,696.68,1.06706228]
[1735579236754,0.90426626,697.51,696.64,1.06706228]
[1735579236953,1.49775122,697.58,696.64,1.06706228]
[1735579237354,0.90363782,697.57,696.64,1.06706228]
[1735579237548,0.90363782,697.56,696.64,1.06706228]
[1735579237952,0.90363782,697.55,696.64,1.06706228]
[1735579238353,0.90363782,697.54,696.64,1.06706228]
[1735579238555,1.49775122,697.58,696.77,1.06706228]
[1735579238951,0.90322771,697.57,696.77,1.06706228]
[1735579239153,0.90322771,697.56,696.77,1.06706228]
[1735579239654,0.90322771,697.56,696.22,1.28047474]
[1735579239655,0.90322771,697.55,696.74,1.06706228]
[1735579240054,0.90322771,697.54,696.74,1.06706228]
[1735579240453,0.90322771,697.53,696.74,1.06706228]
[1735579240658,0.90322771,697.52,696.74,1.06706228]
[1735579241058,0.90322771,697.51,696.74,1.06706228]
[1735579241258,1.49775122,697.58,696.74,1.06706228]
[1735579241660,0.90294854,697.57,696.74,1.06706228]
[1735579242056,0.90294854,697.56,696.72,1.06706228]
[1735579242360,0.90294854,697.55,696.72,1.06706228]
[1735579242555,0.90294854,697.54,696.72,1.06706228]
[1735579242760,0.90294854,697.53,696.72,1.06706228]
[1735579243160,0.90294854,697.52,696.72,1.06706228]
[1735579243356,1.49775122,697.58,696.72,1.06706228]
[1735579243357,0.90294854,697.51,696.72,1.06706228]
[1735579243560,0.90294854,697.5,696.66,1.06706228]
[1735579244062,1.49775122,697.58,696.66,1.06706228]
[1735579244658,0.90286672,697.57,696.66,1.06706228]
[1735579244855,0.90286672,697.56,696.66,1.06706228]
[1735579245060,0.90286672,697.56,696.67,1.06706228]
[1735579245257,0.90286672,697.55,696.67,1.06706228]
[1735579245561,0.90286672,697.54,696.67,1.06706228]
[1735579245958,0.90286672,697.53,696.67,1.06706228]
[1735579246159,0.90286672,697.52,696.7,1.06706228]
[1735579246558,1.49775122,697.58,696.7,1.06706228]
[1735579247066,0.90278169,697.57,696.72,1.06706228]
[1735579247258,0.90278169,697.56,696.72,1.06706228]
[1735579247763,0.90278169,697.55,696.72,1.06706228]
[1735579248064,1.49775122,697.58,696.72,1.06706228]
[1735579248258,1.49775122,697.58,696.01,2.1785855]
[1735579248259,1.49775122,697.58,696.74,1.06706228]
[1735579248460,0.90280927,697.57,696.74,1.06706228]
[1735579248661,1.49775122,697.58,696.74,1.06706228]
[1735579248662,0.90280927,697.56,696.74,1.06706228]
[1735579248861,0.90280927,697.55,696.74,1.06706228]
[1735579249266,1.49775122,697.58,696.77,1.06706228]
[1735579249660,0.9028364,697.57,696.77,1.06706228]
[1735579249859,0.9028364,697.56,696.77,1.06706228]
[1735579250160,1.49775122,697.58,696.77,1.06706228]
[1735579250161,0.9028364,697.55,696.77,1.06706228]
[1735579250366,0.9028364,697.55,696.83,1.06706228]
[1735579250561,1.49775122,697.58,696.83,1.06706228]
[1735579251065,0.90293145,697.57,696.83,1.06706228]
[1735579251262,1.49775122,697.58,696.83,1.06706228]
[1735579251561,1.07545493,698.69,696.83,1.06706228]
[1735579251764,1.49747194,697.68,696.83,1.06706228]
[1735579251960,0.9029792,697.67,696.83,1.06706228]
[1735579252265,0.9029792,697.66,696.83,1.06706228]
[1735579252659,1.49741824,697.68,696.83,1.06706228]
[1735579252660,0.9029792,697.65,696.83,1.06706228]
[1735579252865,0.9029792,697.64,696.96,1.06706228]
[1735579253266,0.9029792,697.63,696.96,1.06706228]
[1735579253565,0.9029792,697.62,696.96,1.06706228]
[1735579253766,0.9029792,697.61,696.96,1.06706228]
[1735579253967,0.9029792,697.61,696.76,1.06706228]
[1735579253968,0.9029792,697.61,697.0,1.06706228]
[1735579254268,0.9029792,697.6,697.0,1.06706228]
[1735579254766,0.9029792,697.59,697.0,1.06706228]
[1735579255163,0.9029792,697.58,697.0,1.06706228]
[1735579255365,0.9029792,697.57,697.0,1.06706228]
[1735579255761,0.9029792,697.56,697.0,1.06706228]
[1735579256166,0.9029792,697.55,697.04,1.06706228]
[1735579256562,0.9029792,697.54,697.04,1.06706228]
[1735579256963,0.9029792,697.53,696.98,1.06706228]
[1735579257165,0.9029792,697.52,696.98,1.06706228]
[1735579257465,0.9029792,697.51,696.98,1.06706228]
[1735579257765,0.9029792,697.5,696.98,1.06706228]
[1735579257962,1.49741824,697.68,696.9,1.06706228]
[1735579257963,0.9029792,697.49,696.9,1.06706228]
[1735579258465,0.9029792,697.48,696.9,1.06706228]
[1735579258665,0.9029792,697.47,696.9,1.06706228]
[1735579259062,0.9029792,697.46,696.9,1.06706228]
[1735579259266,0.9029792,697.46,696.95,1.06706228]
[1735579259571,0.9029792,697.45,696.95,1.06706228]
[1735579259766,0.9029792,697.44,696.95,1.06706228]
[1735579260268,0.9029792,697.43,696.95,1.06706228]
[1735579260469,1.49741824,697.68,696.95,1.06706228]
[1735579260670,0.90423177,697.67,696.97,1.06706228]
[1735579261069,1.49741824,697.68,696.97,1.06706228]
[1735579261070,0.90423177,697.66,696.97,1.06706228]
[1735579261366,0.90423177,697.65,696.97,1.06706228]
[1735579261570,0.90423177,697.64,696.97,1.06706228]
[1735579261870,0.90423177,697.63,697.0,1.06706228]
[1735579262271,0.90423177,697.62,697.0,1.06706228]
[1735579262472,0.90423177,697.61,697.0,1.06706228]
[1735579262872,2.40172519,697.6,697.0,1.06706228]
[1735579263070,0.90423177,697.59,697.0,1.06706228]
[1735579263471,0.90423177,697.58,697.0,1.06706228]
[1735579263867,0.90423177,697.57,697.0,1.06706228]
[1735579264268,0.90423177,697.56,697.0,1.06706228]
[1735579264673,1.49749342,697.6,697.02,1.06706228]
[1735579264674,0.90423177,697.55,697.02,1.06706228]
[1735579265066,0.90423177,697.54,697.02,1.06706228]
[1735579265470,0.90423177,697.53,697.02,1.06706228]
[1735579265672,0.90423177,697.52,697.04,1.06706228]
[1735579265872,0.90423177,697.51,697.04,1.06706228]
[1735579266170,0.90423177,697.5,697.04,1.06706228]
[1735579266374,0.90423177,697.49,697.04,1.06706228]
[1735579266770,0.90423177,697.48,697.04,1.06706228]
[1735579266972,0.90423177,697.48,697.06,1.06706228]
[1735579267174,0.90423177,697.47,697.06,1.06706228]
[1735579267770,0.90423177,697.46,697.06,1.06706228]
[1735579268176,1.49749342,697.6,697.06,1.06706228]
[1735579268378,1.49749342,697.6,697.04,1.06706228]
[1735579268575,0.90588829,697.59,697.04,1.06706228]
[1735579268771,0.90588829,697.58,697.04,1.06706228]
[1735579269072,0.90588829,697.57,697.04,1.06706228]
[1735579269377,0.90588829,697.56,697.04,1.06706228]
[1735579269772,0.90588829,697.55,697.07,1.06706228]
[1735579269974,0.90588829,697.54,697.07,1.06706228]
[1735579270378,0.90588829,697.53,697.07,1.06706228]
[1735579270579,0.90588829,697.52,697.07,1.06706228]
[1735579271178,1.49749342,697.6,697.06,1.06706228]
[1735579271179,0.90588829,697.51,697.06,1.06706228]
[1735579271679,0.90588829,697.5,697.06,1.06706228]
[1735579271975,0.90588829,697.49,697.06,1.06706228]
[1735579272379,0.90588829,697.48,697.06,1.06706228]
[1735579272683,0.90588829,697.47,697.06,1.06706228]
[1735579273185,1.49749342,697.6,697.06,1.06706228]
[1735579273781,0.90675573,697.59,697.06,1.06706228]
[1735579274286,0.90675573,697.58,697.06,1.06706228]
[1735579274784,0.90675573,697.57,697.07,1.06706228]
[1735579275085,0.90675573,697.56,697.07,1.06706228]
[1735579275485,0.90675573,697.55,697.07,1.06706228]
[1735579275785,0.90675573,697.54,697.07,1.06706228]
[1735579276286,0.90675573,697.53,697.07,1.06706228]
[1735579276483,0.90675573,697.52,697.07,1.06706228]
[1735579276884,0.90675573,697.51,697.07,1.06706228]
[1735579277086,0.90675573,697.5,697.03,1.06706228]
[1735579277581,0.90675573,697.49,697.03,1.06706228]
[1735579277787,0.90675573,697.48,697.03,1.06706228]
[1735579278183,0.90675573,697.48,696.25,2.1785855]
[1735579278184,0.90675573,697.47,697.04,1.06706228]
[1735579278487,0.90675573,697.46,697.04,1.06706228]
[1735579278683,0.90675573,697.45,697.04,1.06706228]
[1735579278988,0.90675573,697.44,697.04,1.06706228]
[1735579279489,0.90675573,697.43,697.06,1.06706228]
[1735579279693,0.90675573,697.42,697.06,1.06706228]
[1735579279987,0.90675573,697.41,697.06,1.06706228]
[1735579280291,0.90675573,697.4,697.06,1.06706228]
[1735579280696,0.90675573,697.39,697.06,1.06706228]
[1735579281090,0.90675573,697.38,697.04,1.06706228]
[1735579281287,0.90675573,697.37,697.04,1.06706228]
[1735579281892,0.90675573,697.36,697.04,1.06706228]
[1735579282090,0.90675573,697.35,697.0,1.06706228]
[1735579282396,1.49764916,697.49,697.0,1.06706228]
[1735579282594,0.91044593,697.34,697.0,1.06706228]
[1735579282992,0.91044593,697.33,697.0,1.06706228]
[1735579283193,0.91044593,697.32,697.0,1.06706228]
[1735579283494,1.49764916,697.49,696.97,1.06706228]
[1735579283495,0.91044593,697.31,696.97,1.06706228]
[1735579283793,0.91044593,697.3,696.97,1.06706228]
[1735579284186,0.91044593,697.29,696.97,1.06706228]
[1735579284592,0.91044593,697.28,696.97,1.06706228]
[1735579284794,0.91044593,697.28,696.9,1.06706228]
[1735579285093,0.91044593,697.27,696.9,1.06706228]
[1735579285492,0.91044593,697.26,696.88,1.06706228]
[1735579285692,0.91044593,697.25,696.88,1.06706228]
[1735579285990,0.91044593,697.24,696.88,1.06706228]
[1735579286491,1.49764916,697.49,696.88,1.06706228]
[1735579286492,0.91044593,697.23,696.88,1.06706228]
[1735579286692,0.91044593,697.22,696.88,1.06706228]
[1735579287099,0.91044593,697.21,696.88,1.06706228]
[1735579287298,0.91044593,697.2,696.88,1.06706228]
[1735579287695,0.91044593,697.19,696.81,1.06706228]
[1735579287896,0.91044593,697.18,696.81,1.06706228]
[1735579288400,0.91044593,697.17,696.81,1.06706228]
[1735579288699,0.91044593,697.16,696.81,1.06706228]
[1735579288894,0.91044593,697.16,696.77,1.06706228]
[1735579289097,0.91044593,697.15,696.77,1.06706228]
[1735579289293,0.91044593,697.14,696.77,1.06706228]
[1735579289697,0.91044593,697.13,696.77,1.06706228]
[1735579290091,0.91044593,697.12,696.71,1.06706228]
[1735579290296,0.91044593,697.11,696.71,1.06706228]
[1735579290694,0.91044593,697.1,696.71,1.06706228]
[1735579290895,1.49764916,697.49,696.71,1.06706228]
[1735579290896,0.91044593,697.09,696.71,1.06706228]
[1735579291097,0.91044593,697.08,696.71,1.06706228]
[1735579291395,0.91044593,697.07,696.66,1.06706228]
[1735579291799,1.49829397,697.22,696.66,1.06706228]
[1735579291997,0.9094624,697.21,696.66,1.06706228]
[1735579292396,0.9094624,697.2,696.68,1.06706228]
[1735579292794,0.9094624,697.19,696.68,1.06706228]
[1735579292998,0.9094624,697.18,696.68,1.06706228]
[1735579293404,0.9094624,697.17,696.68,1.06706228]
[1735579293698,0.9094624,697.16,696.67,1.06706228]
[1735579294106,0.9094624,697.15,696.67,1.06706228]
[1735579294499,0.9094624,697.14,696.67,1.06706228]
[1735579294703,0.9094624,697.13,696.67,1.06706228]
[1735579294899,0.9094624,697.12,696.67,1.06706228]
[1735579295100,0.9094624,697.12,696.65,1.06706228]
[1735579295300,0.9094624,697.11,696.65,1.06706228]
[1735579295506,0.9094624,697.1,696.65,1.06706228]
[1735579295806,0.9094624,697.09,696.65,1.06706228]
[1735579296107,0.9094624,697.08,696.62,1.06706228]
[1735579296301,0.9094624,697.07,696.62,1.06706228]
[1735579296701,1.49829397,697.22,696.62,1.06706228]
[1735579297004,0.90858714,697.21,696.62,1.06706228]
[1735579297210,0.90858714,697.21,696.52,1.06706228]
[1735579297506,0.90858714,697.2,696.52,1.06706228]
[1735579298007,0.90858714,697.19,696.52,1.06706228]
[1735579298207,0.90858714,697.18,696.52,1.06706228]
[1735579298408,0.90858714,697.17,696.53,1.06706228]
[1735579298608,0.90858714,697.16,696.53,1.06706228]
[1735579298809,0.90858714,697.15,696.53,1.06706228]
[1735579299006,0.90858714,697.14,696.53,1.06706228]
[1735579299206,0.90858714,697.13,696.53,1.06706228]
[1735579299607,0.90858714,697.12,696.52,1.06706228]
[1735579300009,0.90858714,697.11,696.52,1.06706228]
[1735579300208,0.90858714,697.1,696.52,1.06706228]
[1735579300604,0.90858714,697.09,696.5,1.06706228]
[1735579300908,0.90858714,697.08,696.5,1.06706228]
[1735579301108,0.90858714,697.07,696.5,1.06706228]
[1735579301301,1.49829397,697.22,696.5,1.06706228]
[1735579301909,0.90791276,697.21,696.48,1.06706228]
[1735579302612,0.90791276,697.2,696.48,1.06706228]
[1735579302910,0.90791276,697.19,696.48,1.06706228]
[1735579303108,0.90791276,697.18,696.47,1.06706228]
[1735579303510,0.90791276,697.17,696.47,1.06706228]
[1735579303810,0.90791276,697.16,696.47,1.06706228]
[1735579304012,0.90791276,697.15,696.47,1.06706228]
[1735579304314,0.90791276,697.14,696.45,1.06706228]
[1735579304709,0.90791276,697.13,696.45,1.06706228]
[1735579305206,0.90791276,697.12,696.32,1.06706228]
[1735579305614,0.90791276,697.11,696.32,1.06706228]
[1735579306108,0.90791276,697.1,696.33,1.06706228]
[1735579306514,0.90791276,697.09,696.33,1.06706228]
[1735579306909,0.90791276,697.08,696.33,1.06706228]
[1735579307213,0.90791276,697.07,696.33,1.06706228]
[1735579307416,0.90791276,697.06,696.33,1.06706228]
[1735579307617,0.90791276,697.06,696.31,1.06706228]
[1735579307813,0.90791276,697.05,696.31,1.06706228]
[1735579308013,0.90791276,697.04,696.31,1.06706228]
[1735579308512,0.90791276,697.03,696.31,1.06706228]
[1735579308710,0.90791276,697.03,696.37,1.06706228]
[1735579309014,1.49829397,697.22,696.37,1.06706228]
[1735579309409,0.90703413,697.21,696.37,1.06706228]
[1735579309614,0.90703413,697.2,696.37,1.06706228]
[1735579309814,1.49829397,697.22,696.5,1.06706228]
[1735579309815,0.90703413,697.19,696.5,1.06706228]
[1735579310210,0.90703413,697.18,696.5,1.06706228]
[1735579310612,0.90703413,697.17,696.5,1.06706228]
[1735579311119,0.90703413,697.16,696.62,1.06706228]
[1735579311520,0.90703413,697.15,696.62,1.06706228]
[1735579311919,0.90703413,697.14,696.62,1.06706228]
[1735579312118,1.49829397,697.22,696.62,1.06706228]
[1735579312315,0.90709434,697.21,696.66,1.06706228]
[1735579312716,0.90709434,697.2,696.66,1.06706228]
[1735579312917,0.90709434,697.19,696.66,1.06706228]
[1735579313312,0.90709434,697.18,696.66,1.06706228]
[1735579313516,0.90709434,697.18,696.68,1.06706228]
[1735579313819,0.90709434,697.17,696.68,1.06706228]
[1735579314219,0.90709434,697.16,696.68,1.06706228]
[1735579314420,0.90709434,697.15,696.68,1.06706228]
[1735579314617,0.90709434,697.14,696.68,1.06706228]
[1735579315023,0.90709434,697.13,696.7,1.06706228]
[1735579315418,1.49829397,697.22,696.7,1.06706228]
[1735579315722,0.90736857,697.21,696.7,1.06706228]
[1735579316021,0.90736857,697.2,696.7,1.06706228]
[1735579316223,1.49829397,697.22,696.79,1.06706228]
[1735579316224,0.90736857,697.19,696.79,1.06706228]
[1735579316522,0.90736857,697.18,696.79,1.06706228]
[1735579316822,0.90736857,697.17,696.79,1.06706228]
[1735579317020,0.90736857,697.16,696.79,1.06706228]
[1735579317221,0.90736857,697.15,696.79,1.06706228]
[1735579317522,0.90736857,697.14,696.64,1.06706228]
[1735579317917,0.90736857,697.13,696.64,1.06706228]
[1735579318120,0.90736857,697.12,696.64,1.06706228]
[1735579318320,0.90736857,697.12,696.65,1.06706228]
[1735579318517,0.90736857,697.11,696.65,1.06706228]
[1735579319118,1.49827247,697.29,696.65,1.06706228]
[1735579319321,0.90742835,697.28,696.65,1.06706228]
[1735579319523,0.90742835,697.27,696.65,1.06706228]
[1735579319718,0.90742835,697.27,696.7,1.06706228]
[1735579319921,0.90742835,697.26,696.7,1.06706228]
[1735579320322,0.90742835,697.25,696.7,1.06706228]
[1735579320724,0.90742835,697.24,696.7,1.06706228]
[1735579320925,1.49796612,697.45,696.7,1.06706228]
[1735579321226,0.90728013,697.44,696.75,1.06706228]
[1735579321726,0.90728013,697.43,696.75,1.06706228]
[1735579322026,0.90728013,697.42,697.0,1.06706228]
[1735579322425,0.90728013,697.41,697.0,1.06706228]
[1735579322922,0.90728013,697.4,697.0,1.06706228]
[1735579323427,0.90728013,697.39,696.97,1.06706228]
[1735579323820,0.90728013,697.38,696.97,1.06706228]
[1735579324024,0.90728013,697.37,696.97,1.06706228]
[1735579324225,0.90728013,697.36,696.97,1.06706228]
[1735579324528,0.90728013,697.35,696.95,1.06706228]
[1735579324828,0.90728013,697.34,696.95,1.06706228]
[1735579325127,0.90728013,697.33,696.95,1.06706228]
[1735579325524,0.90728013,697.32,696.94,1.06706228]
[1735579325931,0.90728013,697.31,696.94,1.06706228]
[1735579326126,1.49775122,697.48,696.94,1.06706228]
[1735579326629,0.90753368,697.47,696.91,1.06706228]
[1735579326829,0.90753368,697.46,696.91,1.06706228]
[1735579327224,0.90753368,697.45,696.91,1.06706228]
[1735579327624,0.90753368,697.44,696.86,1.06706228]
[1735579327824,0.90753368,697.43,696.86,1.06706228]
[1735579328231,0.90753368,697.42,696.86,1.06706228]
[1735579328531,0.90753368,697.41,696.86,1.06706228]
[1735579328730,0.90753368,697.41,696.24,2.1785855]
[1735579328731,0.90753368,697.4,696.85,1.06706228]
[1735579329133,0.90753368,697.39,696.85,1.06706228]
[1735579329333,0.90753368,697.38,696.85,1.06706228]
[1735579329727,0.90753368,697.37,696.85,1.06706228]
[1735579330030,0.90753368,697.36,696.89,1.06706228]
[1735579330429,0.90753368,697.35,696.89,1.06706228]
[1735579330629,0.90753368,697.34,696.89,1.06706228]
[1735579330833,0.90753368,697.33,696.89,1.06706228]
[1735579331133,0.90753368,697.32,696.89,1.06706228]
[1735579331633,0.90753368,697.31,696.89,1.06706228]
[1735579331829,0.90753368,697.3,696.89,1.06706228]
[1735579332134,0.90753368,697.29,696.89,1.06706228]
[1735579332335,0.90753368,697.29,696.91,1.06706228]
[1735579332636,0.90753368,697.28,696.91,1.06706228]
[1735579333129,1.07545493,698.16,696.91,1.06706228]
[1735579333327,1.49774585,697.61,696.91,1.06706228]
[1735579333527,0.90817174,697.6,696.91,1.06706228]
[1735579333929,0.90817174,697.59,696.91,1.06706228]
[1735579334430,0.90817174,697.58,696.91,1.06706228]
[1735579334632,0.90817174,697.57,696.91,1.06706228]
[1735579334835,0.90817174,697.56,696.94,1.06706228]
[1735579335233,0.90817174,697.55,696.94,1.06706228]
[1735579335530,0.90817174,697.54,696.94,1.06706228]
[1735579335736,0.90817174,697.53,696.97,1.06706228]
[1735579336133,0.90817174,697.52,696.97,1.06706228]
[1735579336330,0.90817174,697.51,696.97,1.06706228]
[1735579336734,1.49742898,697.68,696.97,1.06706228]
[1735579337035,0.90782355,697.67,696.97,1.06706228]
[1735579337238,0.90782355,697.66,696.94,1.06706228]
[1735579337735,0.90782355,697.65,696.94,1.06706228]
[1735579338336,0.90782355,697.64,696.94,1.06706228]
[1735579338538,0.90782355,697.63,696.94,1.06706228]
[1735579338738,0.90782355,697.62,696.94,1.06706228]
[1735579338939,0.90782355,697.61,696.94,1.06706228]
[1735579339138,0.90782355,697.61,696.91,1.06706228]
[1735579339337,0.90782355,697.6,696.91,1.06706228]
[1735579339836,0.90782355,697.59,696.91,1.06706228]
[1735579340033,0.90782355,697.58,696.91,1.06706228]
[1735579340239,0.90782355,697.58,696.89,1.06706228]
[1735579340540,1.49742898,697.68,696.89,1.06706228]
[1735579340541,0.90782355,697.57,696.89,1.06706228]
[1735579341042,0.90782355,697.56,696.89,1.06706228]
[1735579341336,0.90782355,697.55,696.84,1.06706228]
[1735579341840,1.49742898,697.68,696.84,1.06706228]
[1735579342238,0.90677706,697.67,696.84,1.06706228]
[1735579342438,0.90677706,697.66,696.82,1.06706228]
[1735579342635,0.90677706,697.65,696.82,1.06706228]
[1735579343033,0.90677706,697.64,696.82,1.06706228]
[1735579343339,0.90677706,697.63,696.82,1.06706228]
[1735579343541,1.49734308,697.78,696.82,1.06706228]
[1735579343743,1.49734308,697.78,696.87,1.06706228]
[1735579344142,0.90615657,697.77,696.87,1.06706228]
[1735579344338,0.90615657,697.76,696.87,1.06706228]
[1735579344643,0.90615657,697.75,696.87,1.06706228]
[1735579344843,0.90615657,697.74,696.87,1.06706228]
[1735579345139,0.90615657,697.73,696.87,1.06706228]
[1735579345543,0.90615657,697.72,696.87,1.06706228]
[1735579345843,1.49721424,697.81,696.96,1.06706228]
[1735579345844,0.90615657,697.71,696.96,1.06706228]
[1735579346041,0.90615657,697.7,696.96,1.06706228]
[1735579346437,0.90615657,697.69,696.96,1.06706228]
[1735579346644,1.49721424,697.81,696.96,1.06706228]
[1735579347041,1.49721424,697.81,696.41,1.28047474]
[1735579347042,0.90523315,697.8,697.05,1.06706228]
[1735579347244,0.90523315,697.79,697.05,1.06706228]
[1735579347743,0.90523315,697.78,697.05,1.06706228]
[1735579347943,0.90523315,697.77,697.05,1.06706228]
[1735579348145,0.90523315,697.76,697.06,1.06706228]
[1735579348444,0.90523315,697.75,697.06,1.06706228]
[1735579348638,0.90523315,697.74,697.06,1.06706228]
[1735579348837,1.49702638,697.89,697.06,1.06706228]
[1735579349237,0.90465245,697.88,697.04,1.06706228]
[1735579349442,0.90465245,697.87,697.04,1.06706228]
[1735579349844,0.90465245,697.86,697.04,1.06706228]
[1735579350142,0.90465245,697.85,697.04,1.06706228]
[1735579350342,0.90465245,697.84,697.04,1.06706228]
[1735579350645,1.49702638,697.89,697.05,1.06706228]
[1735579350646,0.90465245,697.83,697.05,1.06706228]
[1735579350843,0.90465245,697.82,697.05,1.06706228]
[1735579351242,0.90465245,697.81,697.05,1.06706228]
[1735579351444,0.90465245,697.8,697.05,1.06706228]
[1735579351841,0.90465245,697.79,697.05,1.06706228]
[1735579352143,0.90465245,697.78,697.05,1.06706228]
[1735579352641,0.90465245,697.77,697.05,1.06706228]
[1735579352842,1.49702638,697.89,696.92,1.06706228]
[1735579352843,0.90465245,697.76,696.92,1.06706228]
[1735579353246,1.49702638,697.89,696.92,1.06706228]
[1735579353247,0.90465245,697.75,696.92,1.06706228]
[1735579353442,0.90465245,697.74,696.92,1.06706228]
[1735579353745,0.90465245,697.73,696.91,1.06706228]
[1735579354448,0.90465245,697.72,696.91,1.06706228]
[1735579354648,0.90465245,697.72,696.93,1.06706228]
[1735579354846,0.90465245,697.71,696.93,1.06706228]
[1735579355245,1.49702638,697.89,696.93,1.06706228]
[1735579355544,0.90355902,697.88,696.93,1.06706228]
[1735579355943,0.90355902,697.87,696.95,1.06706228]
[1735579356143,0.90355902,697.86,696.95,1.06706228]
[1735579356453,0.90355902,697.85,696.95,1.06706228]
[1735579356850,0.90355902,697.84,696.95,1.06706228]
[1735579357050,0.90355902,697.84,696.16,2.1785855]
[1735579357051,0.90355902,697.83,696.97,1.06706228]
[1735579357452,0.90355902,697.82,696.97,1.06706228]
[1735579357855,0.90355902,697.81,696.97,1.06706228]
[1735579358052,1.49702638,697.89,696.94,1.06706228]
[1735579358053,0.90355902,697.8,696.94,1.06706228]
[1735579358455,0.90355902,697.79,696.94,1.06706228]
[1735579358656,0.90355902,697.78,696.94,1.06706228]
[1735579359055,0.90355902,697.77,696.94,1.06706228]
[1735579359260,0.90355902,697.76,696.92,1.06706228]
[1735579359655,0.90355902,697.75,696.92,1.06706228]
[1735579360055,0.90355902,697.74,696.92,1.06706228]
[1735579360362,0.90355902,697.73,696.92,1.06706228]
[1735579360656,0.90355902,697.73,696.95,1.06706228]
[1735579360861,0.90355902,697.72,696.95,1.06706228]
[1735579361059,0.90355902,697.71,696.95,1.06706228]
[1735579361562,0.90355902,697.7,696.95,1.06706228]
[1735579361760,1.49717129,697.8,696.93,1.06706228]
[1735579361960,0.90355684,697.69,696.93,1.06706228]
[1735579362261,1.49717129,697.8,696.93,1.06706228]
[1735579362262,0.90355684,697.68,696.93,1.06706228]
[1735579362663,0.90355684,697.67,696.93,1.06706228]
[1735579362963,0.90355684,697.66,696.97,1.06706228]
[1735579363364,0.90355684,697.65,696.97,1.06706228]
[1735579363760,0.90355684,697.64,696.97,1.06706228]
[1735579363960,0.90355684,697.64,697.02,1.06706228]
[1735579364256,0.90355684,697.63,697.02,1.06706228]
[1735579364561,0.90355684,697.62,697.02,1.06706228]
[1735579364958,1.49717129,697.8,697.02,1.06706228]
[1735579365265,0.90395014,697.79,697.02,1.06706228]
[1735579365462,0.90395014,697.78,697.02,1.06706228]
[1735579365658,0.90395014,697.77,697.02,1.06706228]
[1735579366063,0.90395014,697.76,697.02,1.06706228]
[1735579366263,0.90395014,697.75,696.99,1.06706228]
[1735579366664,0.90395014,697.74,696.99,1.06706228]
[1735579366863,0.90395014,697.73,696.99,1.06706228]
[1735579367262,0.90395014,697.72,696.99,1.06706228]
[1735579367458,0.90395014,697.71,697.02,1.06706228]
[1735579367860,0.90395014,697.7,697.02,1.06706228]
[1735579368466,0.90395014,697.69,697.13,1.06706228]
[1735579368666,0.90395014,697.68,697.13,1.06706228]
[1735579369066,0.90395014,697.67,697.13,1.06706228]
[1735579369266,1.49714446,697.88,697.13,1.06706228]
[1735579369471,1.49714446,697.88,697.15,1.06706228]